[Event "Late-Titled-Tuesday-Blitz-February-13-2024"]
[Site "Chess.com"]
[Date "2024.02.13"]
[Round "1"]
[White "Kotlyar_K"]
[Black "jefferyx"]
[Result "0-1"]
[WhiteElo "2511"]
[BlackElo "3029"]
[TimeControl "180+1"]
[EndTime "14:07:32 PST"]
[Termination "jefferyx won on time"]

1. d4 {[%clk 0:02:51.1]} 1... d5 {[%clk 0:02:59.7]} 2. c4 {[%clk 0:02:48.6]}
2... e6 {[%clk 0:02:59.9]} 3. Nc3 {[%clk 0:02:48.4]} 3... Nf6 {[%clk 0:03:00.1]}
4. cxd5 {[%clk 0:02:48.4]} 4... exd5 {[%clk 0:03:00.4]} 5. Bg5 {[%clk
0:02:48.3]} 5... c6 {[%clk 0:03:01]} 6. e3 {[%clk 0:02:48.8]} 6... Bd6 {[%clk
0:03:01.5]} 7. Bd3 {[%clk 0:02:48.4]} 7... O-O {[%clk 0:03:01.2]} 8. Nge2 {[%clk
0:02:48.4]} 8... Re8 {[%clk 0:03:00.8]} 9. Qc2 {[%clk 0:02:48.1]} 9... h6 {[%clk
0:03:01.1]} 10. Bh4 {[%clk 0:02:42.6]} 10... a5 {[%clk 0:03:00.8]} 11. Bg3
{[%clk 0:02:37.5]} 11... Na6 {[%clk 0:03:00.6]} 12. a3 {[%clk 0:02:36.7]} 12...
Nc7 {[%clk 0:03:00.7]} 13. O-O {[%clk 0:02:36.6]} 13... Bxg3 {[%clk 0:03:00.7]}
14. Nxg3 {[%clk 0:02:35.9]} 14... Qd6 {[%clk 0:03:00.2]} 15. Rac1 {[%clk
0:02:35.3]} 15... h5 {[%clk 0:03:00]} 16. Nf5 {[%clk 0:02:30.1]} 16... Bxf5
{[%clk 0:02:58.1]} 17. Bxf5 {[%clk 0:02:30.2]} 17... g6 {[%clk 0:02:55.5]} 18.
Bh3 {[%clk 0:02:05.3]} 18... Kg7 {[%clk 0:02:50.7]} 19. Na4 {[%clk 0:01:59.7]}
19... Ng4 {[%clk 0:02:35]} 20. g3 {[%clk 0:01:53.7]} 20... Ne6 {[%clk 0:02:31]}
21. Bg2 {[%clk 0:01:32]} 21... h4 {[%clk 0:02:30.1]} 22. h3 {[%clk 0:01:30.4]}
22... Nf6 {[%clk 0:02:26.2]} 23. g4 {[%clk 0:01:28.7]} 23... Ng5 {[%clk
0:02:25.8]} 24. Nc5 {[%clk 0:01:28.3]} 24... Re7 {[%clk 0:02:25.7]} 25. Rce1
{[%clk 0:01:23.6]} 25... Rae8 {[%clk 0:02:25]} 26. Nd3 {[%clk 0:01:22]} 26...
Nd7 {[%clk 0:02:19.7]} 27. Ne5 {[%clk 0:01:10.4]} 27... Nxe5 {[%clk 0:01:45.2]}
28. dxe5 {[%clk 0:01:09.5]} 28... Rxe5 {[%clk 0:01:46.1]} 29. f4 {[%clk
0:01:07.5]} 29... Nxh3+ {[%clk 0:01:47]} 30. Bxh3 {[%clk 0:01:04.1]} 30... Rxe3
{[%clk 0:01:47.9]} 31. Rxe3 {[%clk 0:00:59.8]} 31... Rxe3 {[%clk 0:01:48.8]} 32.
Bg2 {[%clk 0:00:48.6]} 32... h3 {[%clk 0:01:47.8]} 33. Bh1 {[%clk 0:00:46.6]}
33... d4 {[%clk 0:01:47.8]} 34. Qf2 {[%clk 0:00:38.5]} 34... b5 {[%clk
0:01:24.3]} 35. Rd1 {[%clk 0:00:27.7]} 35... Qe6 {[%clk 0:01:22.1]} 36. Bf3
{[%clk 0:00:19.1]} 36... c5 {[%clk 0:01:22.3]} 37. g5 {[%clk 0:00:17.7]} 37...
Qb3 {[%clk 0:01:21.7]} 38. Rf1 {[%clk 0:00:12.7]} 38... Qd3 {[%clk 0:01:06.3]}
39. Kh2 {[%clk 0:00:08.4]} 39... Qf5 {[%clk 0:01:04.6]} 40. Qg3 {[%clk
0:00:05.5]} 40... c4 {[%clk 0:01:04]} 41. Qh4 {[%clk 0:00:04]} 41... Rb3 {[%clk
0:00:43.5]} 42. Rf2 {[%clk 0:00:04.1]} 42... c3 {[%clk 0:00:43.5]} 43. Bg4
{[%clk 0:00:04.3]} 43... Qe4 {[%clk 0:00:37.8]} 44. f5 {[%clk 0:00:04.3]} 44...
Qe5+ {[%clk 0:00:38.3]} 45. Kh1 {[%clk 0:00:02.7]} 45... cxb2 {[%clk 0:00:38.1]}
46. f6+ {[%clk 0:00:02.8]} 46... Kg8 {[%clk 0:00:35.9]} 47. Bxh3 {[%clk
0:00:01.7]} 47... b1=Q+ {[%clk 0:00:35.5]} 48. Bf1 {[%clk 0:00:02.3]} 48...
Qbe4+ {[%clk 0:00:34.8]} 49. Qxe4 {[%clk 0:00:01.5]} 49... Qxe4+ {[%clk
0:00:35.7]} 0-1

[Event "Late-Titled-Tuesday-Blitz-February-13-2024"]
[Site "Chess.com"]
[Date "2024.02.13"]
[Round "1"]
[White "OneTrickPony_82"]
[Black "JaackCamel"]
[Result "1-0"]
[WhiteElo "2562"]
[BlackElo "2195"]
[TimeControl "180+1"]
[EndTime "14:07:33 PST"]
[Termination "OneTrickPony_82 won by resignation"]

1. d4 {[%clk 0:03:00.9]} 1... d5 {[%clk 0:02:56]} 2. c4 {[%clk 0:03:00.6]} 2...
e6 {[%clk 0:02:55.1]} 3. Nf3 {[%clk 0:02:59.9]} 3... c6 {[%clk 0:02:54]} 4. e3
{[%clk 0:02:59.6]} 4... Nf6 {[%clk 0:02:50.9]} 5. Bd3 {[%clk 0:02:57.5]} 5...
Nbd7 {[%clk 0:02:49.7]} 6. b3 {[%clk 0:02:56.6]} 6... Be7 {[%clk 0:02:42.1]} 7.
O-O {[%clk 0:02:55.3]} 7... O-O {[%clk 0:02:41.3]} 8. Bb2 {[%clk 0:02:54.7]}
8... b6 {[%clk 0:02:40.7]} 9. Nbd2 {[%clk 0:02:52.5]} 9... Bb7 {[%clk
0:02:40.3]} 10. Qe2 {[%clk 0:02:51.2]} 10... c5 {[%clk 0:02:35.5]} 11. Rfd1
{[%clk 0:02:50.6]} 11... Rc8 {[%clk 0:02:29.8]} 12. Rac1 {[%clk 0:02:49]} 12...
Qc7 {[%clk 0:02:25.4]} 13. cxd5 {[%clk 0:02:47]} 13... exd5 {[%clk 0:02:23.8]}
14. dxc5 {[%clk 0:02:41.7]} 14... bxc5 {[%clk 0:02:22.5]} 15. Nd4 {[%clk
0:02:37.8]} 15... Qb8 {[%clk 0:02:15.4]} 16. Nf5 {[%clk 0:02:37.3]} 16... Rfe8
{[%clk 0:02:12]} 17. Nxe7+ {[%clk 0:02:34.9]} 17... Rxe7 {[%clk 0:02:12.1]} 18.
Bb1 {[%clk 0:02:14.8]} 18... Ree8 {[%clk 0:02:10.9]} 19. Qd3 {[%clk 0:02:04.8]}
19... Qa8 {[%clk 0:02:06.4]} 20. Qf5 {[%clk 0:01:52.5]} 20... a5 {[%clk
0:01:59.6]} 21. Nf3 {[%clk 0:01:42.8]} 21... Qa6 {[%clk 0:01:56.2]} 22. Ng5
{[%clk 0:01:37.6]} 22... h6 {[%clk 0:01:48.3]} 23. Nh3 {[%clk 0:01:25.8]} 23...
Qe6 {[%clk 0:01:44.6]} 24. Nf4 {[%clk 0:01:23.4]} 24... Qxf5 {[%clk 0:01:43.2]}
25. Bxf5 {[%clk 0:01:23.9]} 25... Rc7 {[%clk 0:01:29]} 26. Bxd7 {[%clk
0:01:16.7]} 26... Nxd7 {[%clk 0:01:28.6]} 27. Nxd5 {[%clk 0:01:16.1]} 27... Rcc8
{[%clk 0:01:27]} 28. Nc3 {[%clk 0:01:07.7]} 28... Ne5 {[%clk 0:01:24.1]} 29. Na4
{[%clk 0:01:06.3]} 29... Be4 {[%clk 0:01:09.7]} 30. Rxc5 {[%clk 0:01:00.5]}
30... Nd3 {[%clk 0:01:03.7]} 31. Rxc8 {[%clk 0:00:55.9]} 31... Rxc8 {[%clk
0:01:03.4]} 32. Bd4 {[%clk 0:00:47.3]} 32... Rc2 {[%clk 0:00:58.9]} 33. f3
{[%clk 0:00:44.4]} 33... Bg6 {[%clk 0:00:57.6]} 34. e4 {[%clk 0:00:42.6]} 34...
Nb4 {[%clk 0:00:56.8]} 35. a3 {[%clk 0:00:38.5]} 35... Nc6 {[%clk 0:00:53.2]}
36. Bb2 {[%clk 0:00:28.8]} 36... f6 {[%clk 0:00:50.3]} 37. Rc1 {[%clk
0:00:26.1]} 37... Nd4 {[%clk 0:00:49.3]} 38. Rxc2 {[%clk 0:00:24.8]} 38... Nxc2
{[%clk 0:00:49.1]} 39. Kf2 {[%clk 0:00:23.2]} 39... Bf7 {[%clk 0:00:49.4]} 40.
Nc5 {[%clk 0:00:21.8]} 40... Kf8 {[%clk 0:00:49.2]} 41. Ke2 {[%clk 0:00:21.5]}
41... a4 {[%clk 0:00:40]} 42. bxa4 {[%clk 0:00:19.5]} 42... Ke7 {[%clk
0:00:39.7]} 43. Kd2 {[%clk 0:00:19.5]} 43... Kd6 {[%clk 0:00:40.1]} 44. Nb7+
{[%clk 0:00:18.4]} 44... Kc7 {[%clk 0:00:40.2]} 45. Kxc2 {[%clk 0:00:18.6]}
45... Kxb7 {[%clk 0:00:40.5]} 46. Kc3 {[%clk 0:00:19.2]} 46... Kb6 {[%clk
0:00:40.8]} 47. Kb4 {[%clk 0:00:19.8]} 47... Ka6 {[%clk 0:00:41.2]} 48. Bd4
{[%clk 0:00:20.3]} 48... Be6 {[%clk 0:00:41.2]} 49. a5 {[%clk 0:00:20.4]} 49...
g6 {[%clk 0:00:41.2]} 50. g4 {[%clk 0:00:20.4]} 50... f5 {[%clk 0:00:40.4]} 51.
h3 {[%clk 0:00:19]} 51... fxe4 {[%clk 0:00:38.6]} 52. fxe4 {[%clk 0:00:18.8]}
52... h5 {[%clk 0:00:38.9]} 53. gxh5 {[%clk 0:00:19.2]} 53... gxh5 {[%clk
0:00:38.3]} 54. h4 {[%clk 0:00:19.8]} 54... Bd7 {[%clk 0:00:37.2]} 55. Bb6
{[%clk 0:00:19.8]} 55... Bc6 {[%clk 0:00:36.9]} 56. e5 {[%clk 0:00:19.6]} 56...
Bd5 {[%clk 0:00:37.3]} 57. Kc5 {[%clk 0:00:20.2]} 57... Be6 {[%clk 0:00:36.4]}
58. Kd6 {[%clk 0:00:20.8]} 1-0

[Event "Late-Titled-Tuesday-Blitz-February-13-2024"]
[Site "Chess.com"]
[Date "2024.02.13"]
[Round "1"]
[White "ArchibaldCerveza29"]
[Black "DonkyDonkyDonkey"]
[Result "0-1"]
[WhiteElo "2504"]
[BlackElo "2965"]
[TimeControl "180+1"]
[EndTime "14:07:35 PST"]
[Termination "DonkyDonkyDonkey won by resignation"]

1. e4 {[%clk 0:02:59.5]} 1... e5 {[%clk 0:02:58.6]} 2. f4 {[%clk 0:02:56.7]}
2... d5 {[%clk 0:02:58.9]} 3. exd5 {[%clk 0:02:52.8]} 3... exf4 {[%clk
0:02:58.6]} 4. Nf3 {[%clk 0:02:51.8]} 4... Qxd5 {[%clk 0:02:58.2]} 5. Nc3 {[%clk
0:02:47.7]} 5... Qe6+ {[%clk 0:02:58.4]} 6. Be2 {[%clk 0:02:46.2]} 6... Nf6
{[%clk 0:02:56.7]} 7. O-O {[%clk 0:02:46.1]} 7... Be7 {[%clk 0:02:54.6]} 8. d4
{[%clk 0:02:39.9]} 8... O-O {[%clk 0:02:54.5]} 9. Bxf4 {[%clk 0:02:39.4]} 9...
Bd6 {[%clk 0:02:53.8]} 10. Qd2 {[%clk 0:02:19.6]} 10... Nc6 {[%clk 0:02:48.6]}
11. Rae1 {[%clk 0:02:17.6]} 11... Bxf4 {[%clk 0:02:28.5]} 12. Qxf4 {[%clk
0:02:16.6]} 12... Qd6 {[%clk 0:02:29.2]} 13. Qh4 {[%clk 0:02:10.1]} 13... Bg4
{[%clk 0:02:25.5]} 14. Nb5 {[%clk 0:01:33.7]} 14... Qd8 {[%clk 0:02:16.9]} 15.
Ng5 {[%clk 0:01:20.3]} 15... h6 {[%clk 0:01:58.1]} 16. Bxg4 {[%clk 0:01:17.9]}
16... Nxg4 {[%clk 0:01:57.3]} 17. Qxg4 {[%clk 0:01:17]} 17... hxg5 {[%clk
0:01:58]} 18. c3 {[%clk 0:01:08.4]} 18... a6 {[%clk 0:01:56.5]} 19. Na3 {[%clk
0:01:08.1]} 19... f6 {[%clk 0:01:34.2]} 20. Re3 {[%clk 0:01:04.2]} 20... Qd5
{[%clk 0:01:32.6]} 21. b3 {[%clk 0:00:37.9]} 21... Rfe8 {[%clk 0:01:31.3]} 22.
Rfe1 {[%clk 0:00:37]} 22... Rxe3 {[%clk 0:01:28.3]} 23. Rxe3 {[%clk 0:00:37.9]}
23... b5 {[%clk 0:01:28]} 24. Nc2 {[%clk 0:00:34.7]} 24... a5 {[%clk 0:01:15.1]}
25. Qe6+ {[%clk 0:00:31.8]} 25... Qxe6 {[%clk 0:01:15]} 26. Rxe6 {[%clk
0:00:32.7]} 26... Nd8 {[%clk 0:01:15]} 27. Re7 {[%clk 0:00:32.5]} 27... c6
{[%clk 0:01:13.4]} 28. Ne3 {[%clk 0:00:30.9]} 28... a4 {[%clk 0:01:11.1]} 29.
Nf5 {[%clk 0:00:30.3]} 29... axb3 {[%clk 0:01:10.9]} 30. axb3 {[%clk 0:00:31.2]}
30... Kf8 {[%clk 0:01:07.9]} 31. Rxg7 {[%clk 0:00:29.9]} 31... Ne6 {[%clk
0:01:07.7]} 32. Rb7 {[%clk 0:00:28.2]} 32... Ra2 {[%clk 0:01:05.3]} 33. Nd6
{[%clk 0:00:25.5]} 33... Nf4 {[%clk 0:01:05]} 34. g3 {[%clk 0:00:25.5]} 34...
Nh3+ {[%clk 0:01:04.8]} 35. Kf1 {[%clk 0:00:23.9]} 35... Rxh2 {[%clk 0:01:04.2]}
36. Rf7+ {[%clk 0:00:23.8]} 36... Kg8 {[%clk 0:01:04.5]} 37. Rxf6 {[%clk
0:00:23.8]} 37... Kg7 {[%clk 0:01:05.1]} 38. Rf5 {[%clk 0:00:21.4]} 38... Kg6
{[%clk 0:01:05.2]} 39. Rc5 {[%clk 0:00:21.2]} 39... Kh5 {[%clk 0:01:05.3]} 40.
Ne4 {[%clk 0:00:20.4]} 40... Kg4 {[%clk 0:01:04.5]} 41. Ke1 {[%clk 0:00:12.5]}
41... Ra2 {[%clk 0:01:00.1]} 42. Rxc6 {[%clk 0:00:12.3]} 42... Kf3 {[%clk
0:01:00.6]} 43. Nd2+ {[%clk 0:00:11.8]} 43... Ke3 {[%clk 0:00:59.3]} 44. Re6+
{[%clk 0:00:11.8]} 44... Kd3 {[%clk 0:00:59.8]} 45. Kf1 {[%clk 0:00:06.6]} 45...
Rxd2 {[%clk 0:00:58.9]} 46. d5 {[%clk 0:00:07.1]} 46... Kxc3 {[%clk 0:00:59.1]}
47. d6 {[%clk 0:00:06.9]} 47... Kxb3 {[%clk 0:00:59.1]} 48. Re3+ {[%clk
0:00:05.9]} 48... Ka4 {[%clk 0:00:58.8]} 49. Re4+ {[%clk 0:00:05.8]} 49... b4
{[%clk 0:00:59.1]} 50. Ke1 {[%clk 0:00:05.5]} 50... Rxd6 {[%clk 0:00:58.9]} 51.
g4 {[%clk 0:00:06.2]} 51... Nf4 {[%clk 0:00:58.4]} 52. Kf2 {[%clk 0:00:06]}
52... Rd2+ {[%clk 0:00:58.1]} 53. Kg1 {[%clk 0:00:05.3]} 53... Rg2+ {[%clk
0:00:57.7]} 54. Kh1 {[%clk 0:00:05.7]} 54... Rxg4 {[%clk 0:00:58.6]} 55. Re3
{[%clk 0:00:05.2]} 55... b3 {[%clk 0:00:56.9]} 56. Kh2 {[%clk 0:00:04.4]} 56...
Rg2+ {[%clk 0:00:56.2]} 57. Kh1 {[%clk 0:00:04.5]} 57... Rc2 {[%clk 0:00:56.8]}
58. Kg1 {[%clk 0:00:03.6]} 58... b2 {[%clk 0:00:57.1]} 59. Re4+ {[%clk
0:00:03.9]} 59... Kb3 {[%clk 0:00:57.6]} 60. Re3+ {[%clk 0:00:02.6]} 60... Ka2
{[%clk 0:00:58.1]} 61. Re2 {[%clk 0:00:02.7]} 61... Rxe2 {[%clk 0:00:57.1]} 0-1

[Event "Late-Titled-Tuesday-Blitz-February-13-2024"]
[Site "Chess.com"]
[Date "2024.02.13"]
[Round "1"]
[White "MolecularChemist"]
[Black "a_kandil"]
[Result "1-0"]
[WhiteElo "2906"]
[BlackElo "2485"]
[TimeControl "180+1"]
[EndTime "14:07:39 PST"]
[Termination "MolecularChemist won by resignation"]

1. Nf3 {[%clk 0:03:00.9]} 1... c5 {[%clk 0:03:00.2]} 2. b3 {[%clk 0:02:57.3]}
2... d5 {[%clk 0:03:00.4]} 3. Bb2 {[%clk 0:02:57.4]} 3... Nc6 {[%clk 0:03:00.5]}
4. e3 {[%clk 0:02:57.3]} 4... Nf6 {[%clk 0:03:00.4]} 5. Bb5 {[%clk 0:02:55.6]}
5... a6 {[%clk 0:02:59.7]} 6. Bxc6+ {[%clk 0:02:55.8]} 6... bxc6 {[%clk
0:03:00.6]} 7. h3 {[%clk 0:02:54.1]} 7... e6 {[%clk 0:02:59.2]} 8. O-O {[%clk
0:02:54.1]} 8... Be7 {[%clk 0:02:58.8]} 9. c4 {[%clk 0:02:51.8]} 9... O-O {[%clk
0:02:59.1]} 10. Qc2 {[%clk 0:02:51.6]} 10... Nd7 {[%clk 0:02:46.2]} 11. Nc3
{[%clk 0:02:47.3]} 11... f6 {[%clk 0:02:45.9]} 12. d4 {[%clk 0:02:32.4]} 12...
Bb7 {[%clk 0:02:38.6]} 13. Rfd1 {[%clk 0:02:30.8]} 13... Rc8 {[%clk 0:02:36.6]}
14. Rac1 {[%clk 0:02:30.5]} 14... Qe8 {[%clk 0:02:36]} 15. Na4 {[%clk
0:02:25.9]} 15... cxd4 {[%clk 0:01:57.8]} 16. Nxd4 {[%clk 0:02:25.1]} 16... Qf7
{[%clk 0:01:53.5]} 17. Qe2 {[%clk 0:01:49.6]} 17... Rfe8 {[%clk 0:01:51.9]} 18.
Nf3 {[%clk 0:01:45.8]} 18... e5 {[%clk 0:01:51.3]} 19. c5 {[%clk 0:01:17.4]}
19... Bf8 {[%clk 0:01:32.3]} 20. e4 {[%clk 0:01:09.8]} 20... d4 {[%clk 0:01:09]}
21. Nd2 {[%clk 0:01:00.7]} 21... a5 {[%clk 0:01:09.3]} 22. Ba3 {[%clk
0:00:55.1]} 22... Ra8 {[%clk 0:01:09.3]} 23. Nc4 {[%clk 0:00:54.7]} 23... Ba6
{[%clk 0:01:09.7]} 24. Qc2 {[%clk 0:00:55.2]} 24... Bb5 {[%clk 0:01:05.1]} 25.
Nd6 {[%clk 0:00:49.5]} 25... Bxd6 {[%clk 0:01:04.3]} 26. cxd6 {[%clk 0:00:50.4]}
26... Bxa4 {[%clk 0:01:04.7]} 27. bxa4 {[%clk 0:00:51.3]} 27... Rac8 {[%clk
0:01:04]} 28. Bc5 {[%clk 0:00:50.7]} 28... Red8 {[%clk 0:00:59.8]} 29. Rb1
{[%clk 0:00:47.7]} 29... Qe6 {[%clk 0:00:58.1]} 30. Ba3 {[%clk 0:00:38.8]} 30...
c5 {[%clk 0:00:57.8]} 31. Rb5 {[%clk 0:00:38.1]} 31... c4 {[%clk 0:00:56.9]} 32.
Rxa5 {[%clk 0:00:34.3]} 32... Ra8 {[%clk 0:00:32.6]} 33. Rb5 {[%clk 0:00:29.7]}
33... Kh8 {[%clk 0:00:30.6]} 34. Rb7 {[%clk 0:00:24.9]} 34... d3 {[%clk
0:00:25.5]} 35. Qc3 {[%clk 0:00:25.3]} 35... Rxa4 {[%clk 0:00:25.5]} 36. Rdb1
{[%clk 0:00:25.6]} 36... Rda8 {[%clk 0:00:21.5]} 37. Bb4 {[%clk 0:00:23.3]}
37... Rxa2 {[%clk 0:00:20.6]} 38. Rc1 {[%clk 0:00:18.2]} 38... Qe8 {[%clk
0:00:16.8]} 39. Qxc4 {[%clk 0:00:14.7]} 39... d2 {[%clk 0:00:16.3]} 40. Rd1
{[%clk 0:00:15]} 40... Ra1 {[%clk 0:00:16.7]} 41. Qe2 {[%clk 0:00:12.5]} 41...
Qc8 {[%clk 0:00:13.2]} 42. Rc7 {[%clk 0:00:10.6]} 42... Qb8 {[%clk 0:00:13.7]}
43. Bxd2 {[%clk 0:00:10.1]} 43... Qb3 {[%clk 0:00:13.8]} 44. Rxa1 {[%clk
0:00:10]} 44... Rxa1+ {[%clk 0:00:14.7]} 45. Kh2 {[%clk 0:00:10.8]} 1-0

[Event "Late-Titled-Tuesday-Blitz-February-13-2024"]
[Site "Chess.com"]
[Date "2024.02.13"]
[Round "1"]
[White "Dedic8"]
[Black "bocah_sakit"]
[Result "1-0"]
[WhiteElo "2857"]
[BlackElo "2462"]
[TimeControl "180+1"]
[EndTime "14:07:41 PST"]
[Termination "Dedic8 won on time"]

1. d4 {[%clk 0:02:42.3]} 1... Nf6 {[%clk 0:02:58.7]} 2. c4 {[%clk 0:02:42.5]}
2... e6 {[%clk 0:02:59.3]} 3. Nc3 {[%clk 0:02:43.1]} 3... Bb4 {[%clk 0:02:59.1]}
4. e3 {[%clk 0:02:43.8]} 4... O-O {[%clk 0:02:58.8]} 5. Bd3 {[%clk 0:02:44.3]}
5... d5 {[%clk 0:02:59.2]} 6. a3 {[%clk 0:02:43.2]} 6... Bxc3+ {[%clk 0:02:59]}
7. bxc3 {[%clk 0:02:44.1]} 7... c5 {[%clk 0:02:59.5]} 8. cxd5 {[%clk 0:02:44.1]}
8... exd5 {[%clk 0:02:58.5]} 9. Ne2 {[%clk 0:02:44.7]} 9... b6 {[%clk
0:02:58.8]} 10. O-O {[%clk 0:02:45.3]} 10... Ba6 {[%clk 0:02:59.4]} 11. f3
{[%clk 0:02:46]} 11... Re8 {[%clk 0:02:58.9]} 12. Ng3 {[%clk 0:02:46.1]} 12...
Bxd3 {[%clk 0:02:57.2]} 13. Qxd3 {[%clk 0:02:47]} 13... Nc6 {[%clk 0:02:58]} 14.
Bb2 {[%clk 0:02:47.5]} 14... Rc8 {[%clk 0:02:57.7]} 15. e4 {[%clk 0:02:39.8]}
15... dxe4 {[%clk 0:02:57.5]} 16. fxe4 {[%clk 0:02:40.3]} 16... Ne5 {[%clk
0:02:53.1]} 17. Qe2 {[%clk 0:02:40.5]} 17... cxd4 {[%clk 0:02:53.2]} 18. cxd4
{[%clk 0:02:41.4]} 18... Nc4 {[%clk 0:02:53.9]} 19. Bc3 {[%clk 0:02:42.2]} 19...
Nd6 {[%clk 0:02:51]} 20. e5 {[%clk 0:02:04]} 20... Rxc3 {[%clk 0:02:47.4]} 21.
Qa2 {[%clk 0:02:04.4]} 21... Nde4 {[%clk 0:02:13.2]} 22. Nxe4 {[%clk 0:01:13.8]}
22... Qxd4+ {[%clk 0:01:51.2]} 23. Nf2 {[%clk 0:01:07.2]} 23... Qxe5 {[%clk
0:01:43.4]} 24. Qd2 {[%clk 0:01:07.3]} 24... Qc5 {[%clk 0:01:39.6]} 25. Kh1
{[%clk 0:01:02.9]} 25... Rc2 {[%clk 0:01:37.4]} 26. Qf4 {[%clk 0:01:03.6]} 26...
h6 {[%clk 0:01:31.5]} 27. Ng4 {[%clk 0:00:59.7]} 27... Re6 {[%clk 0:00:37.1]}
28. Rad1 {[%clk 0:00:59.2]} 28... Rc4 {[%clk 0:00:13.8]} 29. Qb8+ {[%clk
0:00:36.9]} 29... Kh7 {[%clk 0:00:13.1]} 30. Nxf6+ {[%clk 0:00:34.3]} 30... Rxf6
{[%clk 0:00:14]} 31. Rxf6 {[%clk 0:00:33.5]} 31... gxf6 {[%clk 0:00:14.5]} 32.
Qxa7 {[%clk 0:00:34]} 32... Qd5 {[%clk 0:00:13.5]} 33. Rg1 {[%clk 0:00:26]}
33... b5 {[%clk 0:00:13.8]} 34. Qf2 {[%clk 0:00:23]} 34... Rc3 {[%clk
0:00:13.2]} 35. Qxf6 {[%clk 0:00:22.4]} 35... Rxa3 {[%clk 0:00:13.3]} 36. Rf1
{[%clk 0:00:21.8]} 36... Ra7 {[%clk 0:00:10]} 37. h3 {[%clk 0:00:18.2]} 37...
Qe6 {[%clk 0:00:09.3]} 38. Qd4 {[%clk 0:00:16.7]} 38... Rb7 {[%clk 0:00:08.2]}
39. Rf6 {[%clk 0:00:16.8]} 39... Qc4 {[%clk 0:00:05]} 40. Qe3 {[%clk 0:00:14.9]}
40... Qh4 {[%clk 0:00:02.6]} 41. Qf3 {[%clk 0:00:10.6]} 1-0

[Event "Late-Titled-Tuesday-Blitz-February-13-2024"]
[Site "Chess.com"]
[Date "2024.02.13"]
[Round "1"]
[White "DeGrootteZ"]
[Black "ACollins05"]
[Result "0-1"]
[WhiteElo "2821"]
[BlackElo "2454"]
[TimeControl "180+1"]
[EndTime "14:07:46 PST"]
[Termination "ACollins05 won on time"]

1. e4 {[%clk 0:03:00.9]} 1... c5 {[%clk 0:02:53.3]} 2. Nf3 {[%clk 0:03:01.3]}
2... d6 {[%clk 0:02:51.7]} 3. d4 {[%clk 0:03:01.6]} 3... cxd4 {[%clk 0:02:48.3]}
4. Nxd4 {[%clk 0:03:02.5]} 4... Nf6 {[%clk 0:02:47.7]} 5. Nc3 {[%clk 0:03:03]}
5... Nc6 {[%clk 0:02:48.3]} 6. Bg5 {[%clk 0:03:02.6]} 6... e6 {[%clk 0:02:48.8]}
7. Qd2 {[%clk 0:03:01.8]} 7... a6 {[%clk 0:02:48.3]} 8. O-O-O {[%clk 0:03:02.1]}
8... Bd7 {[%clk 0:02:48.6]} 9. Nxc6 {[%clk 0:02:59.6]} 9... Bxc6 {[%clk
0:02:46.8]} 10. f3 {[%clk 0:03:00]} 10... Be7 {[%clk 0:02:42.1]} 11. Kb1 {[%clk
0:02:55.7]} 11... O-O {[%clk 0:02:38.6]} 12. h4 {[%clk 0:02:54.9]} 12... b5
{[%clk 0:02:37.7]} 13. Ne2 {[%clk 0:02:54.7]} 13... a5 {[%clk 0:02:27.3]} 14.
Nd4 {[%clk 0:02:54.8]} 14... Qb6 {[%clk 0:02:20.3]} 15. h5 {[%clk 0:02:49.8]}
15... h6 {[%clk 0:01:56.6]} 16. Be3 {[%clk 0:02:50]} 16... Qb7 {[%clk
0:01:52.7]} 17. g4 {[%clk 0:02:48.6]} 17... d5 {[%clk 0:01:46.5]} 18. e5 {[%clk
0:02:48.5]} 18... Nd7 {[%clk 0:01:46.5]} 19. f4 {[%clk 0:02:47.3]} 19... b4
{[%clk 0:01:46.4]} 20. Rg1 {[%clk 0:02:44.5]} 20... a4 {[%clk 0:01:45.9]} 21. g5
{[%clk 0:02:01.6]} 21... hxg5 {[%clk 0:01:44.2]} 22. f5 {[%clk 0:01:59.3]} 22...
b3 {[%clk 0:00:56.9]} 23. Bxg5 {[%clk 0:01:29.6]} 23... Rfb8 {[%clk 0:00:51.2]}
24. axb3 {[%clk 0:00:28.1]} 24... axb3 {[%clk 0:00:23.8]} 25. Bxe7 {[%clk
0:00:25]} 25... bxc2+ {[%clk 0:00:16]} 26. Qxc2 {[%clk 0:00:25.9]} 26... Qa7
{[%clk 0:00:15.6]} 27. Kc1 {[%clk 0:00:05.1]} 27... Ba4 {[%clk 0:00:09.2]} 28.
Rxg7+ {[%clk 0:00:03.1]} 28... Kxg7 {[%clk 0:00:08.8]} 29. Qg2+ {[%clk 0:00:04]}
29... Kh7 {[%clk 0:00:06.8]} 30. Bd3 {[%clk 0:00:04.5]} 30... Qc7+ {[%clk
0:00:06]} 31. Kd2 {[%clk 0:00:04]} 31... Rxb2+ {[%clk 0:00:05.5]} 32. Nc2 {[%clk
0:00:03.1]} 32... Rxc2+ {[%clk 0:00:05.1]} 33. Ke3 {[%clk 0:00:03.2]} 33... Rxg2
{[%clk 0:00:05]} 34. fxe6+ {[%clk 0:00:03.7]} 34... Kh6 {[%clk 0:00:04.5]} 35.
exf7 {[%clk 0:00:03.7]} 35... Qc5+ {[%clk 0:00:04.8]} 36. Bxc5 {[%clk
0:00:03.3]} 36... Nxc5 {[%clk 0:00:04.6]} 37. Rf1 {[%clk 0:00:03.1]} 37... Rg3+
{[%clk 0:00:04.7]} 38. Kd4 {[%clk 0:00:03]} 38... Rxd3+ {[%clk 0:00:04.6]} 39.
Kxc5 {[%clk 0:00:03.3]} 39... Rc3+ {[%clk 0:00:05.1]} 40. Kd6 {[%clk 0:00:03.5]}
40... Rcc8 {[%clk 0:00:06]} 41. e6 {[%clk 0:00:03.5]} 41... Rd8+ {[%clk
0:00:06]} 42. Ke5 {[%clk 0:00:03.6]} 42... Rf8 {[%clk 0:00:06]} 43. e7 {[%clk
0:00:03.9]} 43... Bb5 {[%clk 0:00:05]} 44. Rf6+ {[%clk 0:00:01.7]} 44... Kg7
{[%clk 0:00:04.3]} 0-1